bitfinex-derivatives/quotes_BTCF0:USTF0_20250803
["timestamp","ask_amount","ask_price","bid_price","bid_amount"]
[1754189120064,0.00459834,113490.0,113480.0,1.29417586]
[1754189120471,0.00459834,113490.0,113480.0,1.0046796]
[1754189120768,0.00459834,113490.0,113480.0,1.29417586]
[1754189121263,0.00459834,113490.0,113480.0,1.29117586]
[1754189121465,0.00459834,113490.0,113480.0,1.29417586]
[1754189122467,0.5734987,113490.0,113480.0,1.29417586]
[1754189122675,0.5883387,113490.0,113480.0,1.29417586]
[1754189123367,0.5883387,113490.0,113480.0,1.29317586]
[1754189123576,0.5883387,113490.0,113480.0,1.29117586]
[1754189125770,0.29984244,113490.0,113480.0,1.29117586]
[1754189125973,0.5883387,113490.0,113480.0,1.29117586]
[1754189132174,0.29984244,113490.0,113480.0,1.29117586]
[1754189132370,0.5398987,113490.0,113480.0,1.29117586]
[1754189133177,0.5895087,113490.0,113480.0,1.29017586]
[1754189133477,0.5895087,113490.0,113480.0,1.29117586]
[1754189138380,0.30101244,113490.0,113480.0,1.29117586]
[1754189138575,0.5895087,113490.0,113480.0,1.29117586]
[1754189140577,0.5895087,113490.0,113480.0,1.0026796]
[1754189140780,0.5895087,113490.0,113480.0,1.29117586]
[1754189144073,0.30101244,113490.0,113480.0,1.29117586]
[1754189144274,0.5895087,113490.0,113480.0,1.29117586]
[1754189144777,0.30101244,113490.0,113480.0,1.29117586]
[1754189144976,0.5895087,113490.0,113480.0,1.29117586]
[1754189152291,0.5895087,113490.0,113480.0,1.29017586]
[1754189152597,0.5895087,113490.0,113480.0,1.29117586]
[1754189160696,0.30101244,113490.0,113480.0,1.29117586]
[1754189160898,0.5895087,113490.0,113480.0,1.29117586]
[1754189161088,0.12475834,113490.0,113480.0,1.29117586]
[1754189161284,0.00459834,113490.0,113480.0,1.29117586]
[1754189164800,0.00459834,113490.0,113480.0,1.0026796]
[1754189164989,0.00459834,113490.0,113480.0,1.29117586]
[1754189165192,0.00459834,113490.0,113480.0,1.0026796]
[1754189165388,0.00459834,113490.0,113480.0,1.29117586]
[1754189167199,0.02906834,113490.0,113480.0,1.29117586]
[1754189168201,0.3175646,113490.0,113480.0,1.29117586]
[1754189170892,0.02906834,113490.0,113480.0,1.29117586]
[1754189171097,0.3175646,113490.0,113480.0,1.29217586]
[1754189171403,0.3175646,113490.0,113480.0,1.29417586]
[1754189172302,0.3175646,113490.0,113480.0,1.0056796]
[1754189172505,0.4938187,113490.0,113480.0,1.29417586]
[1754189172906,0.3175646,113490.0,113480.0,1.29417586]
[1754189175305,0.02906834,113490.0,113480.0,1.29417586]
[1754189175605,0.3175646,113490.0,113480.0,1.29417586]
[1754189177102,0.02906834,113490.0,113480.0,1.29417586]
[1754189177306,0.3175646,113490.0,113480.0,1.29417586]
[1754189179612,0.02906834,113490.0,113480.0,1.29417586]
[1754189179803,0.3175646,113490.0,113480.0,1.29417586]
[1754189182310,0.4938187,113490.0,113480.0,1.0056796]
[1754189182610,0.5886387,113490.0,113480.0,1.29417586]
[1754189183910,0.5886387,113490.0,113480.0,1.29317586]
[1754189185710,0.5886387,113490.0,113480.0,1.29417586]
[1754189190316,0.30014244,113490.0,113480.0,1.29417586]
[1754189190619,0.5886387,113490.0,113480.0,1.29117586]
[1754189190915,0.5886387,113490.0,113480.0,1.29217586]
[1754189191918,0.4123846,113490.0,113480.0,1.29217586]
[1754189194516,0.4123846,113490.0,113480.0,1.29117586]
[1754189194917,0.5886386,113490.0,113480.0,1.29117586]
[1754189197221,0.5886386,113490.0,113480.0,1.0026796]
[1754189197519,0.5886386,113490.0,113480.0,1.29117586]
[1754189200520,0.5886386,113490.0,113480.0,1.0026796]
[1754189200821,0.5886386,113490.0,113480.0,1.29117586]
[1754189202519,0.5886386,113490.0,113480.0,1.29217586]
[1754189204820,0.5886386,113490.0,113480.0,1.29117586]
[1754189205023,0.5886386,113490.0,113480.0,1.29417586]
[1754189205822,0.30014234,113490.0,113480.0,1.29417586]
[1754189206125,0.5886386,113490.0,113480.0,1.29417586]
[1754189208024,0.5886386,113490.0,113480.0,1.0056796]
[1754189208230,0.5886386,113490.0,113480.0,1.29417586]
[1754189209226,0.4123846,113490.0,113480.0,1.29417586]
[1754189210528,0.5886386,113490.0,113480.0,1.29417586]
[1754189212627,0.30014234,113490.0,113480.0,1.29417586]
[1754189212828,0.5886386,113490.0,113480.0,1.29417586]
[1754189214225,0.5886386,113490.0,113480.0,1.29117586]
[1754189214426,0.5886386,113490.0,113480.0,1.29417586]
[1754189215328,0.5886386,113490.0,113480.0,1.29117586]
[1754189215525,0.5886386,113490.0,113480.0,1.29317586]
[1754189215726,0.5886386,113490.0,113480.0,1.29417586]
[1754189217729,0.4123846,113490.0,113480.0,1.29417586]
[1754189219038,0.12388834,113490.0,113480.0,1.29417586]
[1754189219626,0.4123846,113490.0,113480.0,1.29417586]
[1754189220142,0.12388834,113490.0,113480.0,1.29417586]
[1754189220330,0.4123846,113490.0,113480.0,1.0056796]
[1754189220530,0.4123846,113490.0,113480.0,1.29417586]
[1754189221537,0.4123846,113490.0,113480.0,1.29317586]
[1754189221836,0.4123846,113490.0,113480.0,1.29417586]
[1754189223535,0.12388834,113490.0,113480.0,1.29417586]
[1754189224240,0.4123846,113490.0,113480.0,1.29417586]
[1754189224543,0.4123846,113490.0,113480.0,1.0056796]
[1754189224743,0.4123846,113490.0,113480.0,1.29417586]
[1754189227743,0.12388834,113490.0,113480.0,1.29417586]
[1754189227943,0.4123846,113490.0,113480.0,1.29417586]
[1754189236445,0.5886385,113490.0,113480.0,1.29417586]
[1754189236950,0.5886385,113490.0,113480.0,1.29217586]
[1754189237250,0.5886385,113490.0,113480.0,1.0036796]
[1754189237452,0.5886385,113490.0,113480.0,1.29117586]
[1754189242850,0.12388834,113490.0,113480.0,1.29117586]
[1754189243043,0.4123846,113490.0,113480.0,1.29117586]
[1754189245851,0.4123846,113490.0,113480.0,1.0026796]
[1754189246052,0.4123846,113490.0,113480.0,1.29117586]
[1754189249656,0.4123846,113490.0,113480.0,1.29417586]
[1754189251360,0.4123846,113490.0,113480.0,1.0056796]
[1754189251755,0.4123846,113490.0,113480.0,1.29417586]
[1754189252862,0.12388834,113490.0,113480.0,1.29417586]
[1754189265564,0.02906834,113490.0,113480.0,1.29417586]
[1754189269074,0.02906834,113490.0,113480.0,1.29317586]
[1754189269277,0.00459834,113490.0,113480.0,1.29417586]
[1754189269767,0.02937834,113490.0,113480.0,1.29417586]
[1754189275172,0.00459834,113490.0,113480.0,1.29417586]
[1754189278583,0.00459834,113490.0,113480.0,1.29117586]
[1754189278792,0.00459834,113490.0,113480.0,1.29417586]
[1754189278979,0.00459834,113490.0,113480.0,1.0056796]
[1754189279187,0.02710834,113490.0,113480.0,1.29417586]
[1754189281483,0.02710834,113490.0,113480.0,1.29317586]
[1754189281784,0.02710834,113490.0,113480.0,1.29417586]
[1754189282586,0.02710834,113490.0,113480.0,1.29317586]
[1754189282781,0.02710834,113490.0,113480.0,1.29417586]
[1754189284889,0.02710834,113490.0,113480.0,1.29317586]
[1754189285090,0.02710834,113490.0,113480.0,1.29417586]
[1754189288090,0.02710834,113490.0,113480.0,1.0056796]
[1754189288297,0.02710834,113490.0,113480.0,1.29417586]
[1754189289288,0.02710834,113490.0,113480.0,1.29317586]
[1754189289486,0.02710834,113490.0,113480.0,1.29417586]
[1754189290096,0.02710834,113490.0,113480.0,1.29317586]
[1754189290297,0.02710834,113490.0,113480.0,1.29417586]
[1754189290989,0.02710834,113490.0,113480.0,1.29117586]
[1754189291188,0.02710834,113490.0,113480.0,1.29417586]
[1754189294599,0.02710834,113490.0,113480.0,1.29117586]
[1754189294791,0.02710834,113490.0,113480.0,1.29417586]
[1754189295694,0.02710834,113490.0,113480.0,1.0056796]
[1754189295893,0.02710834,113490.0,113480.0,1.29417586]
[1754189297297,0.00459834,113490.0,113480.0,1.29417586]
[1754189303011,0.00459834,113490.0,113480.0,1.0056796]
[1754189303208,0.00459834,113490.0,113480.0,1.29417586]
[1754189303711,0.00459834,113490.0,113480.0,1.29317586]
[1754189304008,0.00459834,113490.0,113480.0,1.29417586]
[1754189314517,0.02811834,113490.0,113480.0,1.29417586]
[1754189330040,0.02811834,113490.0,113480.0,0.57257586]
[1754189330243,0.02811834,113490.0,113480.0,1.29417586]
[1754189330436,0.02811834,113490.0,113480.0,1.0056796]
[1754189330633,0.02811834,113490.0,113480.0,1.29417586]
[1754189333743,0.02811834,113490.0,113480.0,1.0026796]
[1754189333941,0.02811834,113490.0,113480.0,1.29417586]
[1754189334141,0.02811834,113490.0,113480.0,1.29617586]
[1754189334342,0.02811834,113490.0,113480.0,1.29217586]
[1754189334543,0.02811834,113490.0,113480.0,1.29517586]
[1754189337747,0.02811834,113490.0,113480.0,1.29317586]
[1754189337939,0.02793932,113490.0,113480.0,1.29317586]
[1754189341148,0.00441932,113490.0,113480.0,1.0046796]
[1754189341741,0.00441932,113490.0,113480.0,1.29417586]
[1754189342550,0.02808932,113490.0,113480.0,1.29417586]
[1754189343141,0.02808932,113490.0,113480.0,1.29117586]
[1754189343448,0.02808932,113490.0,113480.0,1.29417586]
[1754189343943,0.02808932,113490.0,113480.0,1.29317586]
[1754189344140,0.02808932,113490.0,113480.0,1.29417586]
[1754189345052,0.02808932,113490.0,113480.0,1.0056796]
[1754189345350,0.02808932,113490.0,113480.0,1.29417586]
[1754189349948,0.02808932,113490.0,113480.0,0.57257586]
[1754189350150,0.02808932,113490.0,113480.0,1.29417586]
[1754189350550,0.02808932,113490.0,113480.0,1.0056796]
[1754189350751,0.02808932,113490.0,113480.0,1.29417586]
[1754189351554,0.02808932,113490.0,113480.0,1.0056796]
[1754189352055,0.02808932,113490.0,113480.0,1.29417586]
[1754189353054,0.02808932,113490.0,113480.0,1.0056796]
[1754189353253,0.02808932,113490.0,113480.0,1.29417586]
[1754189353556,0.02808932,113490.0,113480.0,1.29117586]
[1754189356155,0.02808932,113490.0,113480.0,1.0026796]
[1754189356355,0.02808932,113490.0,113480.0,1.29117586]
[1754189356750,0.02808932,113490.0,113480.0,1.0026796]
[1754189357054,0.31658558,113490.0,113480.0,1.29117586]
[1754189357255,0.02808932,113490.0,113480.0,1.29117586]
[1754189363660,0.02808932,113490.0,113480.0,0.56957586]
[1754189363862,0.02808932,113490.0,113480.0,1.29117586]
[1754189365859,0.02808932,113490.0,113480.0,1.0026796]
[1754189366059,0.02808932,113490.0,113480.0,1.29117586]
[1754189368762,0.02808932,113490.0,113480.0,1.0026796]
[1754189368967,0.02808932,113490.0,113480.0,1.29117586]
[1754189371172,0.02808932,113490.0,113480.0,1.0026796]
[1754189371566,0.02808932,113490.0,113480.0,1.29117586]
[1754189375286,0.02808932,113490.0,113480.0,1.0026796]
[1754189375584,0.02808932,113490.0,113480.0,1.29117586]
[1754189385093,0.02808932,113490.0,113480.0,0.56957586]
[1754189385292,0.02808932,113490.0,113480.0,1.29117586]
[1754189390294,0.02808932,113490.0,113480.0,1.0026796]
[1754189390497,0.02808932,113490.0,113480.0,1.29117586]
[1754189391294,0.31658558,113490.0,113480.0,1.29117586]
[1754189391693,0.02808932,113490.0,113480.0,1.29117586]
[1754189395399,0.02808932,113490.0,113480.0,1.0026796]
[1754189395588,0.02808932,113490.0,113480.0,1.29117586]
[1754189402394,0.02808932,113490.0,113480.0,1.0026796]
[1754189402594,0.31658558,113490.0,113480.0,1.29117586]
[1754189402805,0.02808932,113490.0,113480.0,1.29117586]
[1754189407604,0.02808932,113490.0,113480.0,1.0026796]
[1754189407804,0.02808932,113490.0,113480.0,1.29117586]
[1754189408907,0.02808932,113490.0,113480.0,1.0026796]
[1754189409204,0.02808932,113490.0,113480.0,1.29117586]
[1754189409805,0.31658558,113490.0,113480.0,1.29117586]
[1754189410804,0.31658558,113490.0,113480.0,1.0026796]
[1754189411006,0.31658558,113490.0,113480.0,1.29117586]
[1754189412109,0.02808932,113490.0,113480.0,1.29117586]
[1754189412406,0.31658558,113490.0,113480.0,1.29117586]
[1754189416409,0.31658558,113490.0,113480.0,1.40145399]
[1754189416707,0.31658558,113490.0,113480.0,1.29117586]
[1754189416906,0.31658558,113490.0,113480.0,1.0026796]
[1754189417208,0.31658558,113490.0,113480.0,1.29117586]
[1754189417911,0.02808932,113490.0,113480.0,1.29117586]
[1754189418111,0.31658558,113490.0,113480.0,1.29117586]
[1754189418711,0.02808932,113490.0,113480.0,1.29117586]
[1754189418913,0.31658558,113490.0,113480.0,1.29117586]
[1754189420512,0.31658558,113490.0,113480.0,1.0026796]
[1754189420712,0.31658558,113490.0,113480.0,1.29117586]
[1754189422316,0.02808932,113490.0,113480.0,1.29117586]
[1754189422616,0.31658558,113490.0,113480.0,1.29117586]
[1754189426317,0.31658558,113490.0,113480.0,1.40145399]
[1754189426818,0.02808932,113490.0,113480.0,1.40145399]
[1754189428619,0.02808932,113490.0,113480.0,1.11295773]
[1754189428824,0.02808932,113490.0,113480.0,1.40145399]
[1754189429623,0.02808932,113490.0,113480.0,1.29117586]
[1754189431025,0.02808932,113490.0,113480.0,1.0026796]
[1754189431218,0.02808932,113490.0,113480.0,1.29117586]
[1754189432825,0.02808932,113490.0,113480.0,1.40145399]
[1754189433427,0.02808932,113490.0,113480.0,1.40245399]
[1754189435427,0.02808932,113490.0,113480.0,1.40445399]
[1754189436521,0.02808932,113490.0,113480.0,1.29417586]
[1754189438842,0.02808932,113490.0,113480.0,1.29117586]
[1754189439028,0.02808932,113490.0,113480.0,1.29417586]
[1754189440935,0.02808932,113490.0,113480.0,1.29317586]
[1754189441137,0.02808932,113490.0,113480.0,1.29417586]
[1754189448048,0.31658558,113490.0,113480.0,1.29417586]
[1754189448443,0.02808932,113490.0,113480.0,1.29417586]
[1754189448635,0.02808932,113490.0,113480.0,1.0056796]
[1754189448839,0.02808932,113490.0,113480.0,1.29417586]
[1754189452752,0.31658558,113490.0,113480.0,1.29417586]
[1754189454044,0.02808932,113490.0,113480.0,1.29417586]
[1754189457150,0.02808932,113490.0,113480.0,1.0056796]
[1754189457346,0.54157028,113490.0,113480.0,1.0056796]
[1754189457551,0.87780654,113490.0,113480.0,1.0056796]
[1754189457847,0.58931028,113490.0,113480.0,1.0056796]
[1754189458651,0.58931028,113490.0,113480.0,1.0046796]
[1754189459250,0.58931028,113490.0,113480.0,1.0016796]
[1754189459450,0.58931028,113490.0,113480.0,1.29017586]
[1754189459650,0.58931028,113490.0,113480.0,1.0013396]
[1754189460354,0.59031028,113490.0,113480.0,1.0013396]
[1754189460754,0.59031028,113490.0,113480.0,1.28983586]
[1754189462249,0.59031028,113490.0,113480.0,1.0013396]
[1754189462855,0.59031028,113490.0,113480.0,1.28983586]
[1754189464956,0.59031028,113490.0,113480.0,1.0013396]
[1754189465156,0.59031028,113490.0,113480.0,1.28983586]
[1754189467361,0.59031028,113490.0,113480.0,1.0013396]
[1754189467660,0.59031028,113490.0,113480.0,1.28983586]
[1754189469757,0.59031028,113490.0,113480.0,1.0013396]
[1754189469959,0.59031028,113490.0,113480.0,1.28983586]
[1754189470156,0.87880654,113490.0,113480.0,0.7216]
[1754189470363,0.87880654,113490.0,113480.0,0.8978693]
[1754189471858,0.87880654,113490.0,113480.0,0.7216]
[1754189472060,0.87880654,113490.0,113480.0,0.3608]
[1754189472268,0.87880654,113490.0,113470.0,0.3608]
[1754189472269,0.178918,113480.0,113470.0,0.3608]
[1754189472565,0.178918,113480.0,113460.0,0.5371004]
[1754189472566,0.2970749,113470.0,113460.0,0.5371004]
[1754189472869,0.58557116,113470.0,113460.0,0.5371004]
[1754189473365,0.58557116,113470.0,113460.0,0.3608]
[1754189473671,0.87406742,113470.0,113460.0,0.3608]
[1754189474257,0.87306742,113470.0,113460.0,0.3608]
[1754189474457,0.88171435,113470.0,113460.0,0.3608]
[1754189474961,0.59321809,113470.0,113460.0,0.3648]
[1754189477268,0.87306742,113470.0,113460.0,0.5411004]
[1754189477468,0.87306742,113470.0,113460.0,0.5721004]
[1754189477859,0.58457116,113470.0,113460.0,0.5721004]
[1754189478468,0.12079,113450.0,113430.0,0.3608]
[1754189478768,0.67380416,113440.0,113430.0,0.6431054]
[1754189478961,0.67380416,113440.0,113430.0,0.46677]
[1754189479161,0.67380416,113440.0,113430.0,0.10597]
[1754189480662,0.67380416,113440.0,113430.0,0.11097]
[1754189481060,0.67380416,113440.0,113430.0,0.10597]
[1754189481265,0.67380416,113440.0,113430.0,0.11097]
[1754189481753,0.67380416,113440.0,113430.0,0.11397]
[1754189482165,0.67380416,113440.0,113430.0,0.2903171]
[1754189482468,0.67380416,113440.0,113430.0,0.2873171]
[1754189482668,0.67380416,113440.0,113430.0,0.2903171]
[1754189483371,0.67380416,113440.0,113430.0,0.18295346]
[1754189484461,0.67380416,113440.0,113430.0,0.11426346]
[1754189484665,1.32310042,113440.0,113430.0,0.04528]
[1754189484855,1.32310042,113440.0,113430.0,0.0691]
[1754189485666,1.32310042,113440.0,113430.0,0.10357]
[1754189486869,1.32310042,113440.0,113430.0,0.2799172]
[1754189487066,0.67380416,113440.0,113430.0,0.2903172]
[1754189487374,0.47441326,113440.0,113430.0,1.01003974]
[1754189487881,0.47441326,113440.0,113430.0,0.72154348]
[1754189488371,0.48921326,113440.0,113430.0,0.72154348]
[1754189489465,0.54538326,113440.0,113430.0,0.72154348]
[1754189489975,0.56124326,113440.0,113430.0,0.72154348]
[1754189490370,0.56124326,113440.0,113430.0,1.01003974]
[1754189490672,0.56124326,113440.0,113430.0,0.72154348]
[1754189490872,0.58410326,113440.0,113430.0,1.01003974]
[1754189491073,0.58410326,113440.0,113430.0,0.72154348]
[1754189493570,0.295607,113440.0,113430.0,0.72154348]
[1754189493773,0.58410326,113440.0,113430.0,1.01003974]
[1754189494777,0.58410326,113440.0,113430.0,0.72154348]
[1754189494979,0.58410326,113440.0,113430.0,1.01003974]
[1754189499279,0.58410326,113440.0,113430.0,0.72154348]
[1754189499875,0.28849626,113440.0,113430.0,1.01003974]
[1754189500081,0.4275408,113460.0,113450.0,0.2791561]
[1754189500281,0.71603706,113460.0,113450.0,0.6399561]
[1754189500582,0.67195876,113460.0,113450.0,0.6399561]
[1754189501286,0.67195876,113460.0,113450.0,0.6429561]
[1754189503586,0.3834625,113460.0,113450.0,0.6429561]
[1754189503881,0.67195876,113460.0,113450.0,0.6429561]
[1754189505289,0.3834625,113460.0,113450.0,0.6429561]
[1754189505488,0.67195876,113460.0,113450.0,0.6429561]
[1754189506389,0.69445436,113460.0,113450.0,0.6429561]
[1754189507483,0.65037616,113460.0,113450.0,0.6429561]
[1754189507688,0.51325706,113470.0,113460.0,0.1763006]
[1754189507897,0.31777781,113470.0,113460.0,0.92843686]
[1754189508188,0.58377706,113470.0,113460.0,0.6399406]
[1754189508383,0.58377706,113470.0,113460.0,0.64879093]
[1754189509191,0.58377706,113470.0,113460.0,0.64979093]
[1754189510893,0.2952808,113470.0,113460.0,0.64979093]
[1754189512493,0.1860408,113470.0,113460.0,0.64979093]
[1754189512694,0.2952808,113470.0,113460.0,0.64979093]
[1754189512891,0.2644188,113480.0,113470.0,0.176285]
[1754189513093,0.3834088,113480.0,113470.0,0.639925]
[1754189514190,0.3854088,113480.0,113470.0,0.639925]
[1754189515493,0.77024255,113480.0,113470.0,0.639925]
[1754189516892,0.3413389,113480.0,113470.0,0.639925]
[1754189517798,0.2972697,113480.0,113470.0,0.639925]
[1754189521497,0.2410997,113480.0,113470.0,0.639925]
[1754189521694,0.01175,113480.0,113470.0,0.639925]
[1754189522090,0.2977895,113480.0,113470.0,0.639925]
[1754189530903,0.55436834,113480.0,113470.0,1.07277334]
[1754189531199,0.55436834,113480.0,113470.0,0.639925]
[1754189532400,0.55436834,113480.0,113470.0,1.07277334]
[1754189534101,0.73063774,113480.0,113470.0,1.07277334]
[1754189536496,0.73063774,113480.0,113470.0,0.639925]
[1754189536698,0.73063774,113480.0,113470.0,1.07277334]
[1754189548206,0.01175,113480.0,113470.0,1.07277334]
[1754189548415,0.002,113480.0,113470.0,1.07277334]
[1754189557215,0.00441932,113490.0,113480.0,0.2201093]
[1754189557515,0.00441932,113490.0,113480.0,1.07718764]
[1754189559211,0.00541932,113490.0,113480.0,1.07718764]
[1754189559606,0.00641932,113490.0,113480.0,1.07718764]
[1754189562619,0.00641932,113490.0,113480.0,1.34088764]
[1754189563622,0.00641932,113490.0,113480.0,0.9080393]
[1754189564020,0.00641932,113490.0,113480.0,1.34088764]
[1754189573741,0.00641932,113490.0,113480.0,0.9080393]
[1754189573943,0.00641932,113490.0,113480.0,1.34088764]
[1754189579449,0.00641932,113490.0,113480.0,1.45116577]
[1754189583151,0.00541932,113490.0,113480.0,1.34088764]
[1754189583343,0.00541932,113490.0,113480.0,1.34188764]
[1754189584054,0.00441932,113490.0,113480.0,1.34188764]
[1754189584253,0.00441932,113490.0,113480.0,1.34288764]
[1754189589358,0.00441932,113490.0,113480.0,1.34388764]
[1754189589759,0.00441932,113490.0,113480.0,1.34588764]
[1754189590754,0.00441932,113490.0,113480.0,1.34488764]
[1754189591364,0.00441932,113490.0,113480.0,1.77773598]
[1754189591661,0.00441932,113490.0,113480.0,0.9120393]
[1754189591861,0.00441932,113490.0,113480.0,1.77773598]
[1754189593263,0.00441932,113490.0,113480.0,1.88801411]
[1754189595066,0.00441932,113490.0,113480.0,1.77773598]
[1754189596367,0.00441932,113490.0,113480.0,1.88860377]
[1754189596765,0.00441932,113490.0,113480.0,1.02290709]
[1754189596967,0.00441932,113490.0,113480.0,1.88860377]
[1754189598970,0.00441932,113490.0,113480.0,2.15584377]
[1754189603469,0.00441932,113490.0,113480.0,1.29014709]
[1754189603669,0.00441932,113490.0,113480.0,2.15584377]
[1754189611071,0.00441932,113490.0,113480.0,1.29014709]
[1754189611369,0.00441932,113490.0,113480.0,2.15584377]
[1754189611974,0.00441932,113490.0,113480.0,2.04497598]
[1754189614675,0.00441932,113490.0,113480.0,1.1792793]
[1754189614871,0.00441932,113490.0,113480.0,2.04497598]
[1754189616076,0.00441932,113490.0,113480.0,2.15584377]
[1754189616675,0.00441932,113490.0,113480.0,2.04497598]
[1754189617975,0.00441932,113490.0,113480.0,2.40577598]
[1754189623784,0.00441932,113490.0,113480.0,2.51660609]
[1754189633876,0.00441932,113490.0,113480.0,2.40577598]
[1754189638989,0.00441932,113490.0,113480.0,2.04497598]
[1754189639195,0.00441932,113490.0,113480.0,2.40577598]
[1754189639495,0.00441932,113490.0,113480.0,2.51660829]
[1754189648504,0.00441932,113490.0,113480.0,2.40577598]
[1754189656813,0.00441932,113490.0,113480.0,2.51660829]
[1754189658013,0.00441932,113490.0,113480.0,2.40577598]
[1754189662218,0.00441932,113490.0,113480.0,2.51661481]
[1754189663813,0.00441932,113490.0,113480.0,2.40577598]
[1754189674518,0.00441932,113490.0,113480.0,2.51659754]
[1754189685722,0.00441932,113490.0,113480.0,2.40577598]
[1754189690632,0.00441932,113490.0,113480.0,2.13853598]
[1754189690933,0.00441932,113490.0,113480.0,2.40565598]
[1754189700635,0.00441932,113490.0,113480.0,2.40465598]
[1754189700840,0.00441932,113490.0,113480.0,2.40765598]
[1754189701429,0.02910932,113490.0,113480.0,2.40765598]
[1754189701734,0.00441932,113490.0,113480.0,2.40665598]
[1754189714641,0.00441932,113490.0,113480.0,2.5174697]
[1754189715145,0.09978932,113490.0,113480.0,2.40665598]
[1754189715346,0.12295932,113490.0,113480.0,2.40665598]
[1754189715846,0.12295932,113490.0,113480.0,2.5174745]
[1754189716251,0.09978932,113490.0,113480.0,2.6638745]
[1754189716445,0.09978932,113490.0,113480.0,2.5174745]
[1754189716645,0.09978932,113490.0,113480.0,2.40665598]
[1754189717048,0.12295932,113490.0,113480.0,1.2738393]
[1754189717349,0.12295932,113490.0,113480.0,2.51744027]
[1754189718151,0.12295932,113490.0,113480.0,2.25036027]
[1754189718349,0.12295932,113490.0,113480.0,2.51744027]
[1754189719051,0.12295932,113490.0,113480.0,2.40661598]
[1754189719246,0.09978932,113490.0,113480.0,2.40661598]
[1754189719848,0.00441932,113490.0,113480.0,2.51744181]
[1754189720250,0.00441932,113490.0,113480.0,2.40661598]
[1754189720556,0.00441932,113490.0,113480.0,2.13953598]
[1754189720754,0.00441932,113490.0,113480.0,2.40661598]
[1754189721146,0.00441932,113490.0,113480.0,2.51743694]
[1754189723442,0.00441932,113490.0,113480.0,2.40661598]
[1754189723647,0.00441932,113490.0,113480.0,2.51744208]
[1754189724556,0.00441932,113490.0,113480.0,2.25036208]
[1754189724756,0.00441932,113490.0,113480.0,2.51744208]
[1754189730863,0.00441932,113490.0,113480.0,2.40661598]
[1754189732065,0.00441932,113490.0,113480.0,2.40657598]
[1754189733972,0.00441932,113490.0,113480.0,2.13953598]
[1754189734180,0.00441932,113490.0,113480.0,2.40657598]
[1754189734372,0.00441932,113490.0,113480.0,2.51740692]
[1754189735076,0.00441932,113490.0,113480.0,2.51540692]
[1754189735278,0.00441932,113490.0,113480.0,2.51740692]
[1754189741780,0.00441932,113490.0,113480.0,2.40657598]
[1754189742981,0.00441932,113490.0,113480.0,2.51740692]
[1754189745288,0.00441932,113490.0,113480.0,2.40657598]
[1754189746286,0.00441932,113490.0,113480.0,2.13953598]
[1754189746474,0.00441932,113490.0,113480.0,2.40653598]
[1754189746678,0.00441932,113490.0,113480.0,2.51736692]
[1754189751186,0.00441932,113490.0,113480.0,2.51536692]
[1754189751388,0.00441932,113490.0,113480.0,2.51736692]
[1754189752080,0.00441932,113490.0,113480.0,2.51636692]
[1754189752588,0.00441932,113490.0,113480.0,2.51536692]
[1754189755388,0.00441932,113490.0,113480.0,2.40453598]
[1754189793616,0.04714,113530.0,113520.0,0.2202584]
[1754189793824,0.09429,113530.0,113520.0,2.17878678]
[1754189794115,0.09429,113550.0,113540.0,0.3140601]
[1754189794317,0.4134637,113570.0,113550.0,0.04404]
[1754189794520,0.09429,113560.0,113550.0,0.7629203]
[1754189794720,0.09429,113560.0,113550.0,0.7669203]
[1754189794921,0.09429,113560.0,113550.0,0.7733203]
[1754189795222,0.0998137,113570.0,113560.0,0.2763862]
[1754189795418,0.0998137,113570.0,113560.0,0.2803862]
[1754189795625,0.2989257,113570.0,113560.0,0.71323454]
[1754189795927,0.1228137,113570.0,113560.0,1.07403454]
[1754189796616,0.1268137,113570.0,113560.0,1.07403454]
[1754189797516,0.55966204,113570.0,113560.0,1.34087454]
[1754189797715,0.55966204,113570.0,113560.0,0.9080262]
[1754189797920,0.55966204,113570.0,113560.0,1.34087454]
[1754189799121,0.1268137,113570.0,113560.0,1.34087454]
[1754189799316,0.55966204,113570.0,113560.0,1.34087454]
[1754189799815,0.1268137,113570.0,113560.0,1.34948765]
[1754189800017,0.55966204,113570.0,113560.0,1.34948765]
[1754189800917,0.55566204,113570.0,113560.0,1.34948765]
[1754189801122,0.55666204,113570.0,113560.0,1.34948765]
[1754189801721,0.73179274,113570.0,113560.0,1.34948765]
[1754189802022,0.73479274,113570.0,113560.0,1.34948765]
[1754189803724,0.2934362,113560.0,113550.0,0.5809887]
[1754189803923,0.72628454,113560.0,113550.0,0.5809887]
[1754189804124,0.72628454,113560.0,113550.0,0.6523487]
[1754189804326,0.72628454,113560.0,113550.0,0.6748287]
[1754189804720,0.72628454,113560.0,113550.0,0.6788287]
[1754189805019,0.72628454,113560.0,113550.0,0.6852287]
[1754189805220,0.2934362,113560.0,113550.0,1.11807704]
[1754189805421,0.72828454,113560.0,113550.0,1.11807704]
[1754189806030,0.2954362,113560.0,113550.0,1.11807704]
[1754189806426,0.72828454,113560.0,113550.0,1.11807704]
[1754189806628,0.72828454,113560.0,113550.0,1.12703229]
[1754189807127,0.72828454,113560.0,113550.0,1.11807704]
[1754189807328,0.72828454,113560.0,113550.0,0.6852287]
[1754189807524,0.72828454,113560.0,113550.0,1.11807704]
[1754189807923,0.72828454,113560.0,113550.0,0.6852287]
[1754189809535,0.72828454,113560.0,113550.0,0.6411901]
[1754189809936,0.72628454,113560.0,113550.0,0.64979436]
[1754189810227,0.72728454,113560.0,113550.0,0.64979436]
[1754189810832,0.72628454,113560.0,113550.0,0.64979436]
[1754189811032,0.72828454,113560.0,113550.0,0.64979436]
[1754189811232,0.72828454,113560.0,113550.0,1.0826427]
[1754189812240,0.2954362,113560.0,113550.0,1.0826427]
[1754189812440,0.72828454,113560.0,113550.0,1.0826427]
[1754189814141,0.72828454,113560.0,113550.0,0.64979436]
[1754189817132,0.90441254,113560.0,113550.0,0.54555436]
[1754189817438,0.90441254,113560.0,113550.0,0.56982436]
[1754189817641,0.90441254,113560.0,113550.0,0.61691436]
[1754189817839,0.90441254,113560.0,113550.0,0.63939436]
[1754189818338,0.90441254,113560.0,113550.0,0.64339436]
[1754189819242,0.4715642,113560.0,113550.0,0.64339436]
[1754189819444,0.90441254,113560.0,113550.0,0.64339436]
[1754189819839,0.90441254,113560.0,113550.0,0.1761617]
[1754189820145,0.2935417,113550.0,113540.0,0.75643418]
[1754189820342,0.72639004,113550.0,113540.0,0.78862418]
[1754189820643,0.90253404,113550.0,113540.0,0.78862418]
[1754189821639,0.72739004,113550.0,113540.0,0.78862418]
[1754189822040,0.2945417,113550.0,113540.0,0.78862418]
[1754189822240,0.72739004,113550.0,113540.0,0.78862418]
[1754189822544,0.72739004,113550.0,113540.0,0.8014158]
[1754189822743,0.67886171,113550.0,113540.0,0.8014158]
[1754189823143,0.67886171,113550.0,113540.0,0.79262418]
[1754189824345,0.67986171,113550.0,113540.0,0.79262418]
[1754189825643,0.2955417,113550.0,113540.0,0.79262418]
[1754189825942,0.2955417,113550.0,113540.0,0.79902418]
[1754189826549,0.2955417,113550.0,113540.0,0.80766796]
[1754189826846,0.002,113550.0,113540.0,1.19198797]
[1754189829849,0.002,113550.0,113540.0,0.80766796]